[Event "Titled Tuesday Blitz May 16 Early 2023"]
[White "Mitrabha, Guha"]
[Black "Gunina, Valentina"]
[WhiteFideId "5057000"]
[BlackFideId "4167570"]
[WhiteElo "2507"]
[BlackElo "2352"]
[Result "0-1"]
[Round "06"]
[TimeControl "180+2"]
[Date "2023.05.16"]
[WhiteClock "0:00:06"]
[BlackClock "0:00:28"]

1. c4 {[%clk 0:03:00]}  c6 {[%clk 0:02:58]} 2. Nf3 {[%clk 0:02:57]}  d5 {[%clk 0:02:58]} 3. e3 {[%clk 0:02:58]}  Bg4 {[%clk 0:02:56]} 4. Qb3 {[%clk 0:02:57]}  Qc7 {[%clk 0:02:48]} 5. cxd5 {[%clk 0:02:36]}  cxd5 {[%clk 0:02:48]} 6. Nc3 {[%clk 0:02:36]}  Bxf3 {[%clk 0:02:47]} 7. gxf3 {[%clk 0:02:35]}  e6 {[%clk 0:02:48]} 8. d4 {[%clk 0:02:33]}  Nc6 {[%clk 0:02:46]} 9. Bd2 {[%clk 0:02:33]}  Nf6 {[%clk 0:02:46]} 10. Rc1 {[%clk 0:02:31]}  Be7 {[%clk 0:02:46]} 11. Na4 {[%clk 0:02:19]}  O-O {[%clk 0:02:43]} 12. Bd3 {[%clk 0:02:18]}  Rfc8 {[%clk 0:02:41]} 13. O-O {[%clk 0:02:07]}  e5 {[%clk 0:02:26]} 14. Bf5 {[%clk 0:01:35]}  Rd8 {[%clk 0:02:20]} 15. dxe5 {[%clk 0:01:34]}  Qxe5 {[%clk 0:02:17]} 16. Bh3 {[%clk 0:01:34]}  Qh5 {[%clk 0:01:59]} 17. Bg2 {[%clk 0:01:33]}  Ne5 {[%clk 0:01:55]} 18. Qd1 {[%clk 0:01:25]}  d4 {[%clk 0:01:33]} 19. e4 {[%clk 0:01:16]}  Nd3 {[%clk 0:01:22]} 20. f4 {[%clk 0:00:58]}  Nxc1 {[%clk 0:01:12]} 21. Qxh5 {[%clk 0:00:58]}  Nxh5 {[%clk 0:01:13]} 22. Rxc1 {[%clk 0:00:59]}  Rac8 {[%clk 0:01:13]} 23. Rd1 {[%clk 0:00:40]}  b5 {[%clk 0:01:12]} 24. Ba5 {[%clk 0:00:38]}  bxa4 {[%clk 0:01:09]} 25. Bxd8 {[%clk 0:00:38]}  Rxd8 {[%clk 0:01:09]} 26. f5 {[%clk 0:00:38]}  Nf4 {[%clk 0:01:09]} 27. Bf1 {[%clk 0:00:38]}  d3 {[%clk 0:01:09]} 28. h3 {[%clk 0:00:38]}  g5 {[%clk 0:01:09]} 29. Kh2 {[%clk 0:00:37]}  Kg7 {[%clk 0:01:09]} 30. Kg3 {[%clk 0:00:37]}  Kf6 {[%clk 0:01:09]} 31. Kf3 {[%clk 0:00:37]}  Bc5 {[%clk 0:01:09]} 32. h4 {[%clk 0:00:37]}  h6 {[%clk 0:01:08]} 33. Rc1 {[%clk 0:00:37]}  d2 {[%clk 0:01:05]} 34. Rd1 {[%clk 0:00:38]}  Rd4 {[%clk 0:01:02]} 35. hxg5+ {[%clk 0:00:38]}  hxg5 {[%clk 0:01:02]} 36. Bb5 {[%clk 0:00:39]}  Ke5 {[%clk 0:01:01]} 37. Be8 {[%clk 0:00:34]}  Nh3 {[%clk 0:00:56]} 38. Bxf7 {[%clk 0:00:28]}  Rd3+ {[%clk 0:00:52]} 39. Ke2 {[%clk 0:00:24]}  Nf4+ {[%clk 0:00:51]} 40. Kf1 {[%clk 0:00:25]}  Rh3 {[%clk 0:00:48]} 41. Kg1 {[%clk 0:00:25]}  Rd3 {[%clk 0:00:39]} 42. Bc4 {[%clk 0:00:20]}  Rd4 {[%clk 0:00:39]} 43. b3 {[%clk 0:00:21]}  axb3 {[%clk 0:00:39]} 44. axb3 {[%clk 0:00:22]}  g4 {[%clk 0:00:37]} 45. Kh2 {[%clk 0:00:21]}  Bb4 {[%clk 0:00:31]} 46. Kg3 {[%clk 0:00:21]}  Rxe4 {[%clk 0:00:30]} 47. Ra1 {[%clk 0:00:09]}  Re1 {[%clk 0:00:30]} 48. Rxa7 {[%clk 0:00:06]}  d1=Q {[%clk 0:00:28]} 0-1


[Site "https://www.chess.com"]

[Event "Titled Tuesday Blitz May 16 Early 2023"]
[White "Drozdowski, Kacper"]
[Black "Tatarinov, Dmitry"]
[WhiteFideId "1136720"]
[BlackFideId "24160067"]
[WhiteElo "2497"]
[BlackElo "2326"]
[Result "1/2-1/2"]
[Round "06"]
[TimeControl "180+2"]
[Date "2023.05.16"]
[WhiteClock "0:00:16"]
[BlackClock "0:00:13"]

1. e4 {[%clk 0:03:00]}  e5 {[%clk 0:02:57]} 2. Nf3 {[%clk 0:03:00]}  Nc6 {[%clk 0:02:58]} 3. Bc4 {[%clk 0:03:00]}  Bc5 {[%clk 0:02:57]} 4. c3 {[%clk 0:03:00]}  Nf6 {[%clk 0:02:58]} 5. d3 {[%clk 0:03:01]}  d6 {[%clk 0:02:58]} 6. Bb3 {[%clk 0:03:01]}  a5 {[%clk 0:02:56]} 7. Nbd2 {[%clk 0:03:02]}  O-O {[%clk 0:02:55]} 8. h3 {[%clk 0:03:01]}  Be6 {[%clk 0:02:54]} 9. Nh2 {[%clk 0:03:00]}  Qb8 {[%clk 0:02:51]} 10. Ndf1 {[%clk 0:02:55]}  Qa7 {[%clk 0:02:51]} 11. Qf3 {[%clk 0:02:52]}  a4 {[%clk 0:02:49]} 12. Bc2 {[%clk 0:02:41]}  b5 {[%clk 0:02:29]} 13. a3 {[%clk 0:02:41]}  Qb6 {[%clk 0:02:26]} 14. Ng4 {[%clk 0:02:27]}  Nd7 {[%clk 0:02:22]} 15. Nge3 {[%clk 0:02:18]}  Na5 {[%clk 0:02:11]} 16. Ng3 {[%clk 0:02:01]}  Qb7 {[%clk 0:01:52]} 17. Ngf5 {[%clk 0:01:57]}  Bxe3 {[%clk 0:01:49]} 18. Bxe3 {[%clk 0:01:52]}  Bxf5 {[%clk 0:01:45]} 19. Qxf5 {[%clk 0:01:51]}  c5 {[%clk 0:01:44]} 20. O-O {[%clk 0:01:50]}  Nc6 {[%clk 0:01:39]} 21. b4 {[%clk 0:01:22]}  axb3 {[%clk 0:01:21]} 22. Bxb3 {[%clk 0:01:22]}  c4 {[%clk 0:01:22]} 23. dxc4 {[%clk 0:01:18]}  Na5 {[%clk 0:01:22]} 24. Rab1 {[%clk 0:01:12]}  Nf6 {[%clk 0:01:07]} 25. cxb5 {[%clk 0:01:12]}  Nxb3 {[%clk 0:01:02]} 26. Rxb3 {[%clk 0:01:13]}  Nxe4 {[%clk 0:01:02]} 27. c4 {[%clk 0:00:52]}  g6 {[%clk 0:00:58]} 28. Qg4 {[%clk 0:00:51]}  f5 {[%clk 0:00:59]} 29. Qf3 {[%clk 0:00:49]}  Ra4 {[%clk 0:00:59]} 30. Bh6 {[%clk 0:00:41]}  Rc8 {[%clk 0:00:58]} 31. b6 {[%clk 0:00:38]}  Raxc4 {[%clk 0:00:57]} 32. Qe3 {[%clk 0:00:34]}  d5 {[%clk 0:00:51]} 33. f3 {[%clk 0:00:28]}  f4 {[%clk 0:00:51]} 34. Qe1 {[%clk 0:00:27]}  Ng3 {[%clk 0:00:40]} 35. Qxe5 {[%clk 0:00:27]}  Nxf1 {[%clk 0:00:37]} 36. Qe6+ {[%clk 0:00:15]}  Qf7 {[%clk 0:00:34]} 37. Qxf7+ {[%clk 0:00:15]}  Kxf7 {[%clk 0:00:34]} 38. Kxf1 {[%clk 0:00:12]}  Rb8 {[%clk 0:00:30]} 39. h4 {[%clk 0:00:11]}  Rb7 {[%clk 0:00:29]} 40. Rb5 {[%clk 0:00:11]}  Ke6 {[%clk 0:00:29]} 41. Bg5 {[%clk 0:00:09]}  Kd6 {[%clk 0:00:27]} 42. Bd8 {[%clk 0:00:09]}  Kc6 {[%clk 0:00:26]} 43. Rb1 {[%clk 0:00:10]}  Rd7 {[%clk 0:00:26]} 44. Bc7 {[%clk 0:00:10]}  Kb7 {[%clk 0:00:26]} 45. Rb2 {[%clk 0:00:07]}  h6 {[%clk 0:00:26]} 46. Ke2 {[%clk 0:00:07]}  g5 {[%clk 0:00:26]} 47. hxg5 {[%clk 0:00:08]}  hxg5 {[%clk 0:00:27]} 48. Kd3 {[%clk 0:00:08]}  Re7 {[%clk 0:00:26]} 49. Rb5 {[%clk 0:00:08]}  Re3+ {[%clk 0:00:26]} 50. Kd2 {[%clk 0:00:09]}  d4 {[%clk 0:00:25]} 51. Rxg5 {[%clk 0:00:07]}  d3 {[%clk 0:00:25]} 52. Bxf4 {[%clk 0:00:07]}  Re2+ {[%clk 0:00:20]} 53. Kxd3 {[%clk 0:00:07]}  Rcc2 {[%clk 0:00:21]} 54. Be3 {[%clk 0:00:07]}  Rxg2 {[%clk 0:00:17]} 55. Ra5 {[%clk 0:00:07]}  Rb2 {[%clk 0:00:15]} 56. Ra7+ {[%clk 0:00:07]}  Kc6 {[%clk 0:00:16]} 57. Rc7+ {[%clk 0:00:07]}  Kd6 {[%clk 0:00:16]} 58. Bf4+ {[%clk 0:00:07]}  Kd5 {[%clk 0:00:16]} 59. b7 {[%clk 0:00:07]}  Rb3+ {[%clk 0:00:16]} 60. Rc3 {[%clk 0:00:07]}  Rxb7 {[%clk 0:00:17]} 61. Be3 {[%clk 0:00:07]}  Ra2 {[%clk 0:00:16]} 62. Rc5+ {[%clk 0:00:07]}  Ke6 {[%clk 0:00:16]} 63. Rc3 {[%clk 0:00:07]}  Rd7+ {[%clk 0:00:15]} 64. Ke4 {[%clk 0:00:06]}  Re2 {[%clk 0:00:15]} 65. f4 {[%clk 0:00:06]}  Kf7 {[%clk 0:00:16]} 66. Kf3 {[%clk 0:00:07]}  Ra2 {[%clk 0:00:17]} 67. Bc5 {[%clk 0:00:07]}  Rdd2 {[%clk 0:00:17]} 68. Ke4 {[%clk 0:00:07]}  Ke6 {[%clk 0:00:17]} 69. Bb4 {[%clk 0:00:07]}  Re2+ {[%clk 0:00:17]} 70. Kd4 {[%clk 0:00:08]}  Kf5 {[%clk 0:00:17]} 71. Rf3 {[%clk 0:00:06]}  Re4+ {[%clk 0:00:17]} 72. Kc5 {[%clk 0:00:07]}  Rc2+ {[%clk 0:00:17]} 73. Kb5 {[%clk 0:00:07]}  Kg4 {[%clk 0:00:18]} 74. Rf1 {[%clk 0:00:07]}  Kf5 {[%clk 0:00:18]} 75. Bd6 {[%clk 0:00:07]}  Rd2 {[%clk 0:00:18]} 76. Bb4 {[%clk 0:00:07]}  Rd5+ {[%clk 0:00:17]} 77. Ka4 {[%clk 0:00:07]}  Re6 {[%clk 0:00:17]} 78. Kb3 {[%clk 0:00:08]}  Rd3+ {[%clk 0:00:17]} 79. Kc4 {[%clk 0:00:08]}  Rde3 {[%clk 0:00:15]} 80. Kb5 {[%clk 0:00:08]}  R3e4 {[%clk 0:00:14]} 81. Ka4 {[%clk 0:00:09]}  Re8 {[%clk 0:00:14]} 82. Kb5 {[%clk 0:00:09]}  Rb8+ {[%clk 0:00:15]} 83. Ka4 {[%clk 0:00:10]}  Re6 {[%clk 0:00:13]} 84. Kb3 {[%clk 0:00:10]}  Rc6 {[%clk 0:00:12]} 85. Rf2 {[%clk 0:00:09]}  Ke4 {[%clk 0:00:12]} 86. f5 {[%clk 0:00:08]}  Rf6 {[%clk 0:00:11]} 87. Rf1 {[%clk 0:00:09]}  Rxf5 {[%clk 0:00:11]} 88. Rxf5 {[%clk 0:00:09]}  Kxf5 {[%clk 0:00:12]} 89. Kc4 {[%clk 0:00:10]}  Ke6 {[%clk 0:00:12]} 90. Kc5 {[%clk 0:00:10]}  Kd7 {[%clk 0:00:13]} 91. Kd5 {[%clk 0:00:11]}  Rg8 {[%clk 0:00:12]} 92. Kc5 {[%clk 0:00:11]}  Rg5+ {[%clk 0:00:13]} 93. Kb6 {[%clk 0:00:11]}  Kc8 {[%clk 0:00:13]} 94. Kc6 {[%clk 0:00:12]}  Rg6+ {[%clk 0:00:13]} 95. Kb5 {[%clk 0:00:11]}  Kb7 {[%clk 0:00:14]} 96. Kc4 {[%clk 0:00:11]}  Rg5 {[%clk 0:00:14]} 97. Kd4 {[%clk 0:00:12]}  Kc6 {[%clk 0:00:15]} 98. Kc4 {[%clk 0:00:12]}  Rg4+ {[%clk 0:00:15]} 99. Kd3 {[%clk 0:00:12]}  Kd5 {[%clk 0:00:16]} 100. Ke3 {[%clk 0:00:12]}  Re4+ {[%clk 0:00:14]} 101. Kd3 {[%clk 0:00:13]}  Re6 {[%clk 0:00:14]} 102. Bf8 {[%clk 0:00:12]}  Rf6 {[%clk 0:00:14]} 103. Bb4 {[%clk 0:00:12]}  Rf3+ {[%clk 0:00:14]} 104. Ke2 {[%clk 0:00:13]}  Ke4 {[%clk 0:00:14]} 105. Kd2 {[%clk 0:00:13]}  Rd3+ {[%clk 0:00:14]} 106. Kc2 {[%clk 0:00:14]}  Kd4 {[%clk 0:00:15]} 107. Bc5+ {[%clk 0:00:14]}  Kc4 {[%clk 0:00:15]} 108. Bb4 {[%clk 0:00:14]}  Rd4 {[%clk 0:00:14]} 109. Bc3 {[%clk 0:00:14]}  Rg4 {[%clk 0:00:14]} 110. Bb4 {[%clk 0:00:14]}  Rg2+ {[%clk 0:00:14]} 111. Kc1 {[%clk 0:00:13]}  Kd3 {[%clk 0:00:13]} 112. Kb1 {[%clk 0:00:13]}  Rc2 {[%clk 0:00:13]} 113. Ba5 {[%clk 0:00:13]}  Rc8 {[%clk 0:00:12]} 114. Bb4 {[%clk 0:00:13]}  Rc6 {[%clk 0:00:12]} 115. Kb2 {[%clk 0:00:14]}  Kc4 {[%clk 0:00:12]} 116. Kc2 {[%clk 0:00:14]}  Re6 {[%clk 0:00:12]} 117. Kd2 {[%clk 0:00:14]}  Re8 {[%clk 0:00:13]} 118. Kc2 {[%clk 0:00:13]}  Re2+ {[%clk 0:00:13]} 119. Kd1 {[%clk 0:00:13]}  Kd3 {[%clk 0:00:13]} 120. Kc1 {[%clk 0:00:13]}  Rc2+ {[%clk 0:00:14]} 121. Kb1 {[%clk 0:00:14]}  Rc6 {[%clk 0:00:13]} 122. Kb2 {[%clk 0:00:14]}  Re6 {[%clk 0:00:12]} 123. Kb3 {[%clk 0:00:15]}  Rb6 {[%clk 0:00:12]} 124. Kb2 {[%clk 0:00:15]}  Rb7 {[%clk 0:00:13]} 125. Kb3 {[%clk 0:00:15]}  Ra7 {[%clk 0:00:13]} 126. Kb2 {[%clk 0:00:15]}  Rxa3 {[%clk 0:00:13]} 127. Kxa3 {[%clk 0:00:16]} 1/2-1/2


[Site "https://www.chess.com"]

[Event "Titled Tuesday Blitz May 16 Early 2023"]
[White "Dimitrov, Atanas"]
[Black "Nguyen, Ngoc Truong Son"]
[WhiteFideId "2901315"]
[BlackFideId "12401110"]
[WhiteElo "2718"]
[BlackElo "2556"]
[Result "1/2-1/2"]
[Round "06"]
[TimeControl "180+2"]
[Date "2023.05.16"]
[WhiteClock "0:00:08"]
[BlackClock "0:00:03"]

1. Nf3 {[%clk 0:03:00]}  Nf6 {[%clk 0:02:59]} 2. c4 {[%clk 0:03:01]}  e6 {[%clk 0:02:59]} 3. e3 {[%clk 0:03:00]}  b6 {[%clk 0:02:58]} 4. Nc3 {[%clk 0:03:00]}  Bb7 {[%clk 0:02:58]} 5. b3 {[%clk 0:03:01]}  Be7 {[%clk 0:02:58]} 6. Bb2 {[%clk 0:03:02]}  O-O {[%clk 0:02:58]} 7. Be2 {[%clk 0:03:02]}  c5 {[%clk 0:02:49]} 8. O-O {[%clk 0:03:01]}  Nc6 {[%clk 0:02:48]} 9. d4 {[%clk 0:03:00]}  cxd4 {[%clk 0:02:48]} 10. Nxd4 {[%clk 0:03:00]}  a6 {[%clk 0:02:13]} 11. Bf3 {[%clk 0:02:55]}  Qc7 {[%clk 0:02:12]} 12. Rc1 {[%clk 0:02:48]}  Rfd8 {[%clk 0:02:09]} 13. Nd5 {[%clk 0:02:14]}  exd5 {[%clk 0:02:08]} 14. cxd5 {[%clk 0:02:14]}  Bc5 {[%clk 0:02:00]} 15. dxc6 {[%clk 0:02:12]}  dxc6 {[%clk 0:01:59]} 16. Qc2 {[%clk 0:02:04]}  Bxd4 {[%clk 0:01:47]} 17. Bxd4 {[%clk 0:02:04]}  c5 {[%clk 0:01:47]} 18. Bxb7 {[%clk 0:01:58]}  Ng4 {[%clk 0:01:41]} 19. Be5 {[%clk 0:01:16]}  Qxb7 {[%clk 0:01:14]} 20. Bg3 {[%clk 0:01:14]}  Rd7 {[%clk 0:01:06]} 21. Rfd1 {[%clk 0:01:14]}  Rad8 {[%clk 0:01:02]} 22. h3 {[%clk 0:01:13]}  Nf6 {[%clk 0:00:56]} 23. Bh4 {[%clk 0:01:07]}  Rxd1+ {[%clk 0:00:51]} 24. Rxd1 {[%clk 0:01:08]}  Rxd1+ {[%clk 0:00:51]} 25. Qxd1 {[%clk 0:01:08]}  Qd5 {[%clk 0:00:48]} 26. Qe2 {[%clk 0:01:00]}  g5 {[%clk 0:00:48]} 27. Bg3 {[%clk 0:00:59]}  b5 {[%clk 0:00:48]} 28. f3 {[%clk 0:00:57]}  c4 {[%clk 0:00:44]} 29. bxc4 {[%clk 0:00:56]}  bxc4 {[%clk 0:00:45]} 30. e4 {[%clk 0:00:56]}  Qd4+ {[%clk 0:00:39]} 31. Bf2 {[%clk 0:00:55]}  Qa1+ {[%clk 0:00:17]} 32. Kh2 {[%clk 0:00:55]}  Qe5+ {[%clk 0:00:14]} 33. g3 {[%clk 0:00:52]}  Qb5 {[%clk 0:00:08]} 34. Bd4 {[%clk 0:00:48]}  Nd7 {[%clk 0:00:08]} 35. Bc3 {[%clk 0:00:47]}  f6 {[%clk 0:00:07]} 36. f4 {[%clk 0:00:43]}  gxf4 {[%clk 0:00:06]} 37. gxf4 {[%clk 0:00:44]}  Qc6 {[%clk 0:00:05]} 38. Qg4+ {[%clk 0:00:41]}  Kf7 {[%clk 0:00:05]} 39. Qh5+ {[%clk 0:00:41]}  Kg7 {[%clk 0:00:05]} 40. Qg4+ {[%clk 0:00:41]}  Kf7 {[%clk 0:00:06]} 41. Qf5 {[%clk 0:00:41]}  Kg7 {[%clk 0:00:05]} 42. e5 {[%clk 0:00:39]}  fxe5 {[%clk 0:00:03]} 43. fxe5 {[%clk 0:00:40]}  Kg8 {[%clk 0:00:03]} 44. e6 {[%clk 0:00:33]}  Qc7+ {[%clk 0:00:03]} 45. Kg2 {[%clk 0:00:28]}  Nf8 {[%clk 0:00:03]} 46. Qd5 {[%clk 0:00:16]}  Qe7 {[%clk 0:00:03]} 47. Qxc4 {[%clk 0:00:08]}  Qxe6 {[%clk 0:00:03]} 1/2-1/2


[Site "https://www.chess.com"]

[Event "Titled Tuesday Blitz May 16 Early 2023"]
[White "Priasmoro, Novendra"]
[Black "Tari, Aryan"]
[WhiteFideId "7105029"]
[BlackFideId "1510045"]
[WhiteElo "2412"]
[BlackElo "2571"]
[Result "1-0"]
[Round "06"]
[TimeControl "180+2"]
[Date "2023.05.16"]
[WhiteClock "0:01:06"]
[BlackClock "0:00:00"]

1. e4 {[%clk 0:03:00]}  e5 {[%clk 0:02:56]} 2. Nf3 {[%clk 0:03:01]}  Nc6 {[%clk 0:02:56]} 3. Bb5 {[%clk 0:03:02]}  a6 {[%clk 0:02:55]} 4. Ba4 {[%clk 0:03:01]}  f5 {[%clk 0:02:56]} 5. Bxc6 {[%clk 0:02:38]}  bxc6 {[%clk 0:02:53]} 6. exf5 {[%clk 0:02:37]}  e4 {[%clk 0:02:41]} 7. Qe2 {[%clk 0:02:31]}  Nf6 {[%clk 0:02:37]} 8. d3 {[%clk 0:02:30]}  d5 {[%clk 0:02:20]} 9. dxe4 {[%clk 0:02:24]}  Nxe4 {[%clk 0:02:17]} 10. O-O {[%clk 0:02:19]}  Bd6 {[%clk 0:02:17]} 11. Ng5 {[%clk 0:02:18]}  O-O {[%clk 0:02:13]} 12. Nxe4 {[%clk 0:02:14]}  dxe4 {[%clk 0:02:14]} 13. Qxe4 {[%clk 0:02:15]}  Bxf5 {[%clk 0:02:13]} 14. Qxc6 {[%clk 0:02:15]}  Qh4 {[%clk 0:01:58]} 15. f4 {[%clk 0:02:15]}  Rae8 {[%clk 0:01:53]} 16. Nc3 {[%clk 0:02:15]}  Bxc2 {[%clk 0:01:46]} 17. Qxa6 {[%clk 0:01:58]}  Bc5+ {[%clk 0:00:52]} 18. Kh1 {[%clk 0:01:58]}  Re1 {[%clk 0:00:53]} 19. Bd2 {[%clk 0:01:51]}  Rxa1 {[%clk 0:00:52]} 20. Rxa1 {[%clk 0:01:52]}  Qf2 {[%clk 0:00:52]} 21. Qe2 {[%clk 0:01:48]}  Qd4 {[%clk 0:00:36]} 22. Nb5 {[%clk 0:01:32]}  Qe4 {[%clk 0:00:17]} 23. Qxe4 {[%clk 0:01:28]}  Bxe4 {[%clk 0:00:18]} 24. Nxc7 {[%clk 0:01:29]}  Rd8 {[%clk 0:00:15]} 25. Bc3 {[%clk 0:01:28]}  Bd6 {[%clk 0:00:08]} 26. Ne6 {[%clk 0:01:26]}  Rc8 {[%clk 0:00:07]} 27. a4 {[%clk 0:01:18]}  Bd5 {[%clk 0:00:06]} 28. Nxg7 {[%clk 0:01:19]}  Bxf4 {[%clk 0:00:06]} 29. Nf5 {[%clk 0:01:18]}  Bg5 {[%clk 0:00:03]} 30. h4 {[%clk 0:01:17]}  Be6 {[%clk 0:00:00]} 31. Nd4 {[%clk 0:01:06]} 1-0


[Site "https://www.chess.com"]

[Event "Titled Tuesday Blitz May 16 Early 2023"]
[White "Keymer, Vincent"]
[Black "Mirzoev, Azer"]
[WhiteFideId "12940690"]
[BlackFideId "13400304"]
[WhiteElo "2669"]
[BlackElo "2525"]
[Result "1-0"]
[Round "06"]
[TimeControl "180+2"]
[Date "2023.05.16"]
[WhiteClock "0:00:01"]
[BlackClock "0:00:00"]

1. a3 {[%clk 0:03:00]}  d5 {[%clk 0:02:59]} 2. Nf3 {[%clk 0:03:00]}  Nf6 {[%clk 0:02:57]} 3. e3 {[%clk 0:03:00]}  c6 {[%clk 0:02:55]} 4. c4 {[%clk 0:03:00]}  e6 {[%clk 0:02:54]} 5. b4 {[%clk 0:02:56]}  Nbd7 {[%clk 0:02:54]} 6. Bb2 {[%clk 0:02:55]}  Bd6 {[%clk 0:02:51]} 7. d4 {[%clk 0:02:55]}  O-O {[%clk 0:02:52]} 8. Nbd2 {[%clk 0:02:50]}  Qe7 {[%clk 0:02:51]} 9. Ne5 {[%clk 0:02:20]}  a5 {[%clk 0:02:41]} 10. c5 {[%clk 0:02:20]}  Bc7 {[%clk 0:02:36]} 11. Bd3 {[%clk 0:02:14]}  Nxe5 {[%clk 0:02:29]} 12. dxe5 {[%clk 0:02:14]}  Nd7 {[%clk 0:02:29]} 13. f4 {[%clk 0:01:57]}  axb4 {[%clk 0:02:18]} 14. axb4 {[%clk 0:01:55]}  Rxa1 {[%clk 0:02:18]} 15. Bxa1 {[%clk 0:01:56]}  b6 {[%clk 0:02:14]} 16. Nf3 {[%clk 0:01:23]}  h6 {[%clk 0:01:57]} 17. Bb1 {[%clk 0:01:19]}  bxc5 {[%clk 0:01:28]} 18. Qc2 {[%clk 0:01:18]}  f5 {[%clk 0:00:45]} 19. exf6 {[%clk 0:01:16]}  Nxf6 {[%clk 0:00:37]} 20. bxc5 {[%clk 0:00:44]}  Ba5+ {[%clk 0:00:32]} 21. Kd1 {[%clk 0:00:25]}  Ne4 {[%clk 0:00:22]} 22. Bd4 {[%clk 0:00:22]}  Ba6 {[%clk 0:00:13]} 23. Qa2 {[%clk 0:00:18]}  Qb7 {[%clk 0:00:08]} 24. Bxe4 {[%clk 0:00:13]}  dxe4 {[%clk 0:00:08]} 25. Qxe6+ {[%clk 0:00:14]}  Kh7 {[%clk 0:00:07]} 26. Qxe4+ {[%clk 0:00:08]}  Kg8 {[%clk 0:00:07]} 27. Qe6+ {[%clk 0:00:08]}  Kh7 {[%clk 0:00:07]} 28. Nd2 {[%clk 0:00:06]}  Bxd2 {[%clk 0:00:05]} 29. Kxd2 {[%clk 0:00:04]}  Qb4+ {[%clk 0:00:05]} 30. Kc1 {[%clk 0:00:03]}  Qa3+ {[%clk 0:00:05]} 31. Bb2 {[%clk 0:00:03]}  Qd3 {[%clk 0:00:03]} 32. Rd1 {[%clk 0:00:01]}  Qb5 {[%clk 0:00:02]} 33. Qe4+ {[%clk 0:00:01]}  Kg8 {[%clk 0:00:02]} 34. Qd4 {[%clk 0:00:01]}  Rf7 {[%clk 0:00:02]} 35. Qc3 {[%clk 0:00:02]}  Kh7 {[%clk 0:00:00]} 36. Qc2+ {[%clk 0:00:01]} 1-0


[Site "https://www.chess.com"]

[Event "Titled Tuesday Blitz May 16 Early 2023"]
[White "Drygalov, Sergey"]
[Black "Martinez Ramirez, Lennis"]
[WhiteFideId "24171743"]
[BlackFideId "3509079"]
[WhiteElo "2533"]
[BlackElo "2410"]
[Result "1-0"]
[Round "06"]
[TimeControl "180+2"]
[Date "2023.05.16"]
[WhiteClock "0:00:31"]
[BlackClock "0:00:00"]

1. d4 {[%clk 0:02:59]}  d5 {[%clk 0:03:00]} 2. c4 {[%clk 0:02:56]}  e6 {[%clk 0:03:00]} 3. Nc3 {[%clk 0:02:57]}  Nf6 {[%clk 0:03:00]} 4. Nf3 {[%clk 0:02:57]}  Be7 {[%clk 0:02:59]} 5. Bf4 {[%clk 0:02:57]}  O-O {[%clk 0:02:59]} 6. e3 {[%clk 0:02:58]}  c5 {[%clk 0:02:59]} 7. dxc5 {[%clk 0:02:57]}  Bxc5 {[%clk 0:02:44]} 8. Qc2 {[%clk 0:02:56]}  Nc6 {[%clk 0:02:40]} 9. a3 {[%clk 0:02:55]}  dxc4 {[%clk 0:02:36]} 10. Bxc4 {[%clk 0:02:53]}  Qe7 {[%clk 0:02:26]} 11. Rd1 {[%clk 0:02:48]}  a5 {[%clk 0:02:18]} 12. O-O {[%clk 0:02:45]}  h6 {[%clk 0:02:16]} 13. Na4 {[%clk 0:02:34]}  Nh5 {[%clk 0:01:42]} 14. Nxc5 {[%clk 0:01:21]}  Nxf4 {[%clk 0:01:41]} 15. Na4 {[%clk 0:01:19]}  Ng6 {[%clk 0:01:27]} 16. Bd3 {[%clk 0:01:17]}  Nge5 {[%clk 0:01:25]} 17. Bh7+ {[%clk 0:01:15]}  Kh8 {[%clk 0:01:25]} 18. Be4 {[%clk 0:01:15]}  f5 {[%clk 0:01:17]} 19. Bxc6 {[%clk 0:01:06]}  Nxc6 {[%clk 0:01:16]} 20. Nd4 {[%clk 0:01:06]}  Bd7 {[%clk 0:01:14]} 21. Qc5 {[%clk 0:01:04]}  Rad8 {[%clk 0:00:40]} 22. Nxc6 {[%clk 0:00:59]}  Qxc5 {[%clk 0:00:37]} 23. Nxc5 {[%clk 0:01:00]}  Bxc6 {[%clk 0:00:37]} 24. Nxe6 {[%clk 0:01:00]}  Rxd1 {[%clk 0:00:36]} 25. Rxd1 {[%clk 0:01:01]}  Rf6 {[%clk 0:00:32]} 26. Nd4 {[%clk 0:01:00]}  Bd7 {[%clk 0:00:20]} 27. g3 {[%clk 0:00:55]}  Kg8 {[%clk 0:00:20]} 28. Rc1 {[%clk 0:00:55]}  Rb6 {[%clk 0:00:20]} 29. Rc7 {[%clk 0:00:49]}  Bc6 {[%clk 0:00:15]} 30. b3 {[%clk 0:00:43]}  Be4 {[%clk 0:00:13]} 31. f3 {[%clk 0:00:41]}  Bb1 {[%clk 0:00:13]} 32. Kf2 {[%clk 0:00:39]}  g6 {[%clk 0:00:10]} 33. a4 {[%clk 0:00:35]}  Ba2 {[%clk 0:00:09]} 34. Rc2 {[%clk 0:00:33]}  Bxb3 {[%clk 0:00:09]} 35. Rb2 {[%clk 0:00:32]}  Rb4 {[%clk 0:00:07]} 36. Rxb3 {[%clk 0:00:32]}  Rxa4 {[%clk 0:00:07]} 37. Rxb7 {[%clk 0:00:33]}  Ra2+ {[%clk 0:00:08]} 38. Ne2 {[%clk 0:00:31]}  h5 {[%clk 0:00:08]} 39. e4 {[%clk 0:00:31]}  fxe4 {[%clk 0:00:08]} 40. fxe4 {[%clk 0:00:32]}  g5 {[%clk 0:00:09]} 41. h4 {[%clk 0:00:31]}  gxh4 {[%clk 0:00:09]} 42. gxh4 {[%clk 0:00:32]}  Ra4 {[%clk 0:00:08]} 43. Ke3 {[%clk 0:00:32]}  Ra3+ {[%clk 0:00:09]} 44. Kf4 {[%clk 0:00:32]}  Rh3 {[%clk 0:00:09]} 45. Nd4 {[%clk 0:00:29]}  Rxh4+ {[%clk 0:00:10]} 46. Kf5 {[%clk 0:00:30]}  Rh1 {[%clk 0:00:09]} 47. e5 {[%clk 0:00:30]}  Rf1+ {[%clk 0:00:08]} 48. Kg6 {[%clk 0:00:30]}  Kf8 {[%clk 0:00:09]} 49. Nf5 {[%clk 0:00:29]}  Ke8 {[%clk 0:00:08]} 50. e6 {[%clk 0:00:29]}  Rd1 {[%clk 0:00:05]} 51. Rb8+ {[%clk 0:00:28]}  Rd8 {[%clk 0:00:05]} 52. Rxd8+ {[%clk 0:00:29]}  Kxd8 {[%clk 0:00:05]} 53. Kf7 {[%clk 0:00:30]}  Kc7 {[%clk 0:00:06]} 54. e7 {[%clk 0:00:31]}  Kc6 {[%clk 0:00:00]} 55. e8=Q+ {[%clk 0:00:31]} 1-0


[Site "https://www.chess.com"]